bitfinex-derivatives/quotes_BNBF0:USTF0_20250413
["timestamp","ask_amount","ask_price","bid_price","bid_amount"]
[1744506248583,0.30831588,596.78,596.02,2.201]
[1744506248787,0.30831588,596.79,596.02,2.201]
[1744506248988,0.30831588,596.78,596.02,2.201]
[1744506249288,0.30831588,596.77,596.02,2.201]
[1744506249488,0.30831588,596.81,596.02,2.201]
[1744506249681,0.30831588,596.8,596.02,2.201]
[1744506249886,0.30831588,596.81,596.02,2.201]
[1744506250082,0.2919157,596.79,596.02,2.201]
[1744506250286,0.30831588,596.78,596.02,2.201]
[1744506252191,0.60023525,596.77,596.02,2.201]
[1744506252391,0.30831588,596.76,596.02,2.201]
[1744506255088,0.30831588,596.75,596.02,2.201]
[1744506255289,0.29192182,596.75,596.02,2.201]
[1744506255486,0.30831588,596.74,596.02,2.201]
[1744506256594,0.29192182,596.75,596.02,2.201]
[1744506256792,0.30831605,596.74,596.02,2.201]
[1744506261091,0.30831605,596.81,596.02,2.201]
[1744506261289,0.2919157,596.73,596.02,2.201]
[1744506261492,0.30831605,596.72,596.02,2.201]
[1744506261690,0.30831605,596.81,596.02,2.201]
[1744506261891,0.30831605,596.8,596.02,2.201]
[1744506262095,0.30831605,596.81,596.02,2.201]
[1744506262292,0.2919157,596.79,596.02,2.201]
[1744506262495,0.30831605,596.78,596.02,2.201]
[1744506266098,0.2919157,596.79,596.02,2.201]
[1744506266295,0.30832001,596.78,596.02,2.201]
[1744506269503,0.30832001,596.77,596.02,2.201]
[1744506269699,0.30832001,596.76,596.02,2.201]
[1744506269904,0.30832001,596.75,596.02,2.201]
[1744506270204,0.30832001,596.74,596.02,2.201]
[1744506270404,0.30832001,596.78,596.02,2.201]
[1744506270598,0.30832001,596.77,596.02,2.201]
[1744506270801,0.30832001,596.76,596.02,2.201]
[1744506271000,0.30832001,596.75,596.02,2.201]
[1744506271200,0.30832001,596.74,596.02,2.201]
[1744506271405,0.30832001,596.75,596.02,2.201]
[1744506271601,0.30832001,596.74,596.02,2.201]
[1744506271805,0.30832001,596.75,596.02,2.201]
[1744506272002,0.30832001,596.74,596.02,2.201]
[1744506272207,1.27119983,596.68,596.02,2.201]
[1744506272406,0.30832001,596.67,596.02,2.201]
[1744506273308,0.29193284,596.66,596.02,2.201]
[1744506273502,0.30832001,596.65,596.02,2.201]
[1744506274203,0.30834733,596.64,596.02,2.201]
[1744506274506,0.30834733,596.63,596.02,2.201]
[1744506274807,0.30834733,596.62,596.02,2.201]
[1744506275005,0.30834733,596.65,596.02,2.201]
[1744506275206,0.30834733,596.64,596.02,2.201]
[1744506275408,0.30834733,596.65,596.02,2.201]
[1744506276108,0.30834733,596.67,596.02,2.201]
[1744506276308,0.30834733,596.66,596.02,2.201]
[1744506276502,0.30834733,596.67,596.02,2.201]
[1744506276704,0.30834733,596.66,596.02,2.201]
[1744506276907,0.30834733,596.67,596.02,2.201]
[1744506277207,0.29194508,596.65,596.02,2.201]
[1744506277409,0.30834733,596.64,596.02,2.201]
[1744506278309,1.27119983,596.6,596.02,2.201]
[1744506278509,0.30834733,596.59,596.02,2.201]
[1744506281105,0.30834733,596.58,596.02,2.201]
[1744506281308,0.30834733,596.64,596.02,2.201]
[1744506282212,1.27119983,596.83,596.02,2.201]
[1744506282510,0.30836097,596.81,596.02,2.201]
[1744506282711,0.33512064,596.8,596.02,2.201]
[1744506282906,0.30836097,596.79,596.02,2.201]
[1744506283106,0.33513187,596.78,596.02,2.201]
[1744506283308,0.30836097,596.77,596.02,2.201]
[1744506283506,0.3351431,596.76,596.02,2.201]
[1744506283811,0.30836097,596.75,596.02,2.201]
[1744506284210,0.33515433,596.74,596.02,2.201]
[1744506284414,0.30836097,596.73,596.02,2.201]
[1744506284612,0.33516557,596.72,596.02,2.201]
[1744506284808,0.30836097,596.71,596.02,2.201]
[1744506285009,0.64353215,596.71,596.02,2.201]
[1744506285210,0.30836097,596.7,596.02,2.201]
[1744506287908,0.30836097,596.69,596.02,2.201]
[1744506288107,0.30836097,596.68,596.02,2.201]
[1744506288309,0.30836097,596.67,596.02,2.201]
[1744506288512,0.30836097,596.66,596.02,2.201]
[1744506288712,0.33517118,596.71,596.02,2.201]
[1744506288914,0.30838064,596.7,596.02,2.201]
[1744506289112,0.30838064,596.69,596.02,2.201]
[1744506289313,0.30838064,596.68,596.02,2.201]
[1744506289514,0.30838064,596.67,596.02,2.201]
[1744506289706,0.30838064,596.66,596.02,2.201]
[1744506289911,0.30838064,596.65,596.02,2.201]
[1744506290206,0.30838064,596.64,596.02,2.201]
[1744506290510,0.30838064,596.69,596.02,2.201]
[1744506290708,0.30838064,596.68,596.02,2.201]
[1744506291015,0.30838064,596.67,596.02,2.201]
[1744506291214,0.30838064,596.66,596.02,2.201]
[1744506291409,0.30838064,596.65,596.02,2.201]
[1744506291614,0.30838064,596.67,596.02,2.201]
[1744506291816,0.30838064,596.64,596.02,2.201]
[1744506292015,0.30838064,596.63,596.02,2.201]
[1744506292314,0.30838064,596.62,596.02,2.201]
[1744506292514,0.30838064,596.67,596.02,2.201]
[1744506293017,1.27119983,596.63,596.02,2.201]
[1744506293217,0.30838064,596.62,596.02,2.201]
[1744506295314,0.60033086,596.61,596.02,2.201]
[1744506295520,0.30836496,596.6,596.02,2.201]
[1744506297321,0.30836496,596.62,596.02,2.201]
[1744506297517,0.30836496,596.61,596.02,2.201]
[1744506297820,0.30836496,596.6,596.02,2.201]
[1744506298020,0.30836496,596.62,596.02,2.744]
[1744506298320,0.2919659,596.6,596.02,2.744]
[1744506298515,1.57956479,596.59,596.02,2.744]
[1744506298720,0.30836496,596.58,596.02,2.744]
[1744506301222,0.2919708,596.57,596.02,2.744]
[1744506301723,0.30836496,596.56,596.02,2.744]
[1744506302823,0.2919708,596.57,596.02,2.744]
[1744506303024,0.3083648,596.56,596.02,2.744]
[1744506303220,0.29197325,596.55,596.02,2.744]
[1744506303416,0.3083648,596.54,596.02,2.744]
[1744506304422,0.29197325,596.55,596.02,2.744]
[1744506304619,0.30836792,596.54,596.02,2.744]
[1744506306119,0.30836792,596.66,596.02,2.744]
[1744506306426,0.2919757,596.53,596.02,2.744]
[1744506306625,0.30836792,596.52,596.02,2.744]
[1744506306819,0.30836792,596.66,596.02,2.744]
[1744506307017,0.30836792,596.65,596.02,2.744]
[1744506307226,0.30836792,596.66,596.02,2.744]
[1744506307526,0.30836792,596.65,596.02,2.744]
[1744506307725,0.30836792,596.66,596.02,2.744]
[1744506307927,0.60032892,596.65,596.02,2.744]
[1744506308125,0.30836792,596.64,596.02,2.744]
[1744506308327,1.27119983,596.62,596.02,2.744]
[1744506308527,0.30836792,596.61,596.02,2.744]
[1744506310226,0.29197448,596.6,596.02,2.744]
[1744506310427,0.30836792,596.59,596.02,2.744]
[1744506310628,1.27119983,596.56,596.02,2.744]
[1744506311128,0.30839487,596.55,596.02,2.744]
[1744506312229,0.29198183,596.54,596.02,2.744]
[1744506312429,0.30839487,596.53,596.02,2.744]
[1744506314324,0.30839487,596.56,596.02,2.744]
[1744506315231,0.30839487,596.67,596.02,2.744]
[1744506315432,0.30839487,596.66,596.02,2.744]
[1744506315628,1.27119983,596.68,596.02,2.744]
[1744506315833,0.30844059,596.67,596.02,2.744]
[1744506316036,0.30844059,596.66,596.02,2.744]
[1744506316234,0.64364548,596.65,596.02,2.744]
[1744506316430,0.30844059,596.64,596.02,2.744]
[1744506316730,0.6436511,596.64,596.02,2.744]
[1744506316934,0.30844059,596.63,596.02,2.744]
[1744506317236,0.33521613,596.63,596.02,2.744]
[1744506317435,0.30843692,596.62,596.02,2.744]
[1744506317733,0.2919855,596.61,596.02,2.744]
[1744506318035,1.57963675,596.6,596.02,2.744]
[1744506318236,0.30843692,596.59,596.02,2.744]
[1744506320635,0.30843085,596.58,596.02,2.744]
[1744506320935,0.30843085,596.57,596.02,2.744]
[1744506321132,0.30843085,596.6,596.02,2.744]
[1744506321332,0.30843085,596.59,596.02,2.744]
[1744506321529,0.30843085,596.6,596.02,2.744]
[1744506321733,0.30843085,596.59,596.02,2.744]
[1744506321933,0.30843085,596.58,596.02,2.744]
[1744506322132,0.30843085,596.6,596.02,2.744]
[1744506322433,0.30843085,596.59,596.02,2.744]
[1744506322733,0.30843085,596.58,596.02,2.744]
[1744506322930,0.30843085,596.6,596.02,2.744]
[1744506323134,0.30843085,596.59,596.02,2.744]
[1744506323334,0.2919855,596.61,596.02,2.744]
[1744506323335,0.30843085,596.6,596.02,2.744]
[1744506323734,0.2919855,596.61,596.02,2.744]
[1744506323936,0.30843164,596.6,596.02,2.744]
[1744506325231,0.30843164,596.59,596.02,2.744]
[1744506325434,0.2919855,596.61,596.02,2.744]
[1744506325636,0.30843214,596.6,596.02,2.744]
[1744506325836,0.30843214,596.59,596.02,2.744]
[1744506326031,0.30843214,596.58,596.02,2.744]
[1744506326231,0.30843214,596.57,596.02,2.744]
[1744506326436,0.30843214,596.56,596.02,2.744]
[1744506326638,0.30843214,596.55,596.02,2.744]
[1744506326934,0.33521613,596.63,596.02,2.744]
[1744506327135,0.30842889,596.62,596.02,2.744]
[1744506327339,0.30842889,596.61,596.02,2.744]
[1744506327539,1.57962872,596.6,596.02,1.881]
[1744506327739,0.30842889,596.59,596.02,1.881]
[1744506327933,0.30842889,596.58,596.02,1.881]
[1744506328137,0.30842889,596.57,596.02,1.881]
[1744506328334,0.30842889,596.56,596.02,1.359]
[1744506328741,0.3084306,596.55,596.02,1.359]
[1744506328941,0.3084306,596.54,596.02,1.359]
[1744506329141,0.3084306,596.53,596.02,1.359]
[1744506329341,0.3084306,596.59,596.02,1.359]
[1744506329544,0.3084306,596.58,596.02,0.842]
[1744506329842,0.3084306,596.57,596.02,0.299]
[1744506330038,0.3084306,596.56,595.44,0.69]
[1744506330344,1.27119983,596.5,595.44,0.69]
[1744506330543,0.30843066,596.49,595.44,0.69]
[1744506333343,0.2920725,596.48,595.44,0.69]
[1744506333850,0.30843113,596.47,595.44,0.69]
[1744506335046,0.2920725,596.48,595.44,0.69]
[1744506335242,0.30843083,596.47,595.44,0.69]
[1744506339153,0.30843083,596.59,595.44,0.69]
[1744506339354,0.29207495,596.46,595.44,0.69]
[1744506339550,0.30843083,596.45,595.44,0.69]
[1744506339752,0.30843083,596.62,595.44,0.69]
[1744506340356,0.29205656,596.61,595.44,0.69]
[1744506340556,0.30843083,596.6,595.44,0.69]
[1744506341658,0.29205656,596.61,595.44,0.69]
[1744506341858,0.30842392,596.6,595.44,0.69]
[1744506342256,0.30842392,596.62,595.44,0.69]
[1744506343258,0.29205656,596.61,595.44,0.69]
[1744506343558,0.3084251,596.6,595.44,0.69]
[1744506344958,0.29205656,596.61,595.44,0.69]
[1744506345159,0.30842737,596.6,595.44,0.69]
[1744506347158,0.29205656,596.61,595.44,0.69]
[1744506347159,0.30842737,596.59,595.44,0.69]
[1744506347359,0.30842737,596.58,595.44,0.69]
[1744506347558,0.30842737,596.57,595.44,0.69]
[1744506347758,0.30842737,596.56,595.44,0.69]
[1744506347956,0.30842737,596.55,595.44,0.69]
[1744506348160,0.30842737,596.54,595.44,0.69]
[1744506348361,0.29205902,596.55,595.44,0.69]
[1744506348562,0.30842737,596.54,595.44,0.69]
[1744506349764,1.27119983,596.5,595.44,0.69]
[1744506349964,0.30842703,596.49,595.44,0.69]
[1744506351262,1.56327233,596.48,595.44,0.69]
[1744506351465,0.30842703,596.47,595.44,0.69]
[1744506352070,0.30842703,596.47,595.42,0.661]
[1744506353165,1.56327233,596.48,595.42,0.661]
[1744506353366,0.30842657,596.47,595.42,0.661]
[1744506354363,0.2920774,596.46,595.42,0.661]
[1744506354563,0.30842657,596.45,595.42,0.661]
[1744506356470,0.2920774,596.46,595.42,0.661]
[1744506356672,0.30842584,596.45,595.42,0.661]
[1744506357171,0.30842584,596.47,595.42,0.661]
[1744506357370,0.29207985,596.44,595.42,0.661]
[1744506357670,0.30842584,596.43,595.42,0.661]
[1744506357871,0.30842584,596.43,595.42,1.197]
[1744506358066,0.29207985,596.44,595.42,1.197]
[1744506358267,0.30842639,596.43,595.42,1.197]
[1744506360275,0.30842639,596.42,595.42,1.197]
[1744506360475,0.2920823,596.42,595.42,1.197]
[1744506360674,0.30842639,596.41,595.42,1.197]
[1744506361171,0.30842782,596.4,595.42,1.197]
[1744506361375,0.30842782,596.41,595.42,1.197]
[1744506361576,0.30842782,596.4,595.42,1.197]
[1744506361777,0.30842782,596.39,595.42,1.197]
[1744506362077,0.30842782,596.38,595.42,1.784]
[1744506362277,0.30842782,596.41,595.42,1.784]
[1744506362577,0.30842835,596.4,595.42,1.784]
[1744506362776,0.2920823,596.42,595.42,1.784]
[1744506362777,0.30842835,596.41,595.42,1.784]
[1744506363178,0.30842835,596.57,595.42,1.784]
[1744506364079,1.27119983,596.58,595.42,1.784]
[1744506364280,0.29206514,596.56,595.42,1.784]
[1744506364473,0.30842815,596.55,595.42,1.784]
[1744506366180,0.30842815,596.57,595.42,1.784]
[1744506366381,0.2920676,596.54,595.42,1.784]
[1744506366574,0.30842815,596.53,595.42,1.784]
[1744506367580,0.30842815,596.53,595.42,2.437]
[1744506369186,0.30842815,596.62,595.42,2.437]
[1744506369479,0.33522736,596.61,595.42,3.31]
[1744506369782,0.30842815,596.6,595.42,3.31]
[1744506369983,0.3352386,596.59,595.42,3.31]
[1744506370183,0.30842815,596.58,595.42,3.31]
[1744506370685,0.62731968,596.59,595.42,3.31]
[1744506370884,0.30848017,596.58,595.42,3.31]
[1744506371784,0.33524984,596.57,595.42,3.31]
[1744506371981,0.30848017,596.56,595.42,3.31]
[1744506373285,0.29208598,596.55,595.42,3.31]
[1744506373478,0.30848017,596.54,595.42,3.31]
[1744506375187,0.30848017,596.56,595.42,3.31]
[1744506375587,0.33524984,596.57,595.42,3.31]
[1744506375787,0.30843432,596.56,595.42,3.31]
[1744506376082,0.33524984,596.57,595.42,3.31]
[1744506376083,0.30843412,596.55,595.42,3.31]
[1744506376287,0.29206637,596.55,595.42,3.31]
[1744506376488,0.30843412,596.54,595.42,3.31]
[1744506377791,0.30843412,596.54,595.42,3.911]
[1744506377989,0.30843412,596.54,595.42,4.777]
[1744506378190,0.30843412,596.56,595.42,4.777]
[1744506378386,0.29206637,596.53,595.42,4.777]
[1744506378688,0.30843412,596.52,595.42,4.777]
[1744506378888,0.30843412,596.52,595.42,5.559]
[1744506380590,0.29206637,596.53,595.42,5.559]
[1744506380791,0.30843232,596.52,595.42,5.559]
[1744506381192,0.30843232,596.56,595.42,5.559]
[1744506381392,0.29207127,596.51,595.42,5.559]
[1744506381593,0.30843232,596.5,595.42,5.559]
[1744506382694,0.29207127,596.51,595.42,5.559]
[1744506382890,0.29207127,596.51,595.43,0.3358917]
[1744506383997,0.33524984,596.57,595.43,0.3358917]
[1744506384196,0.30839254,596.56,595.43,0.3358917]
[1744506384396,0.29204676,596.5,595.43,0.3358917]
[1744506385700,0.29204676,596.5,595.43,0.6348917]
[1744506385892,0.29204676,596.5,595.43,1.2658917]
[1744506386898,0.29204676,596.5,595.43,1.9618917]
[1744506389300,0.29204676,596.5,595.43,2.5538917]
[1744506390000,0.33524984,596.57,595.43,2.5538917]
[1744506390201,0.30839196,596.56,595.43,2.5538917]
[1744506390401,0.60035296,596.56,595.43,2.5538917]
[1744506390600,0.291961,596.56,595.43,2.5538917]
[1744506391302,0.30839174,596.55,595.43,2.5538917]
[1744506392004,0.291961,596.56,595.43,3.1448917]
[1744506392303,0.30839103,596.55,595.43,3.1448917]
[1744506393203,0.30839103,596.56,595.43,3.1448917]
[1744506393503,0.29204676,596.54,595.43,3.1448917]
[1744506393702,0.30839103,596.53,595.43,3.1448917]
[1744506395504,0.29204676,596.54,595.43,3.1448917]
[1744506396411,0.29204676,596.54,595.44,0.29580988]
[1744506397611,0.29204676,596.54,595.45,0.551]
[1744506397907,0.29204676,596.54,595.46,0.29580988]
[1744506398510,0.29204676,596.54,595.47,0.855]
[1744506398712,0.29204676,596.54,595.48,0.29580988]
[1744506398906,1.27119983,597.49,595.48,0.29580988]
[1744506399107,0.30818679,597.48,595.48,0.29580988]
[1744506399407,0.30818679,597.47,595.48,0.29580988]
[1744506399613,0.33475604,597.45,595.48,0.29580988]
[1744506399813,0.30818679,597.44,595.48,0.29580988]
[1744506400014,0.30818679,597.43,595.48,0.29580988]
[1744506400213,0.30818679,597.42,595.5,0.33585222]
[1744506400414,0.64296525,597.41,595.51,0.29580988]
[1744506400615,0.33478966,597.39,595.53,0.3358353]
[1744506400816,0.30818679,597.38,595.54,0.29580988]
[1744506401215,0.30818679,597.38,595.56,0.33581838]
[1744506401516,0.33480648,597.36,595.57,0.29580988]
[1744506401716,0.30818679,597.35,595.59,0.33580147]
[1744506401917,0.33482329,597.33,595.6,0.29580988]
[1744506402116,0.30818679,597.32,595.62,0.33578456]
[1744506402317,0.33484011,597.3,595.63,0.29580988]
[1744506402515,0.30818679,597.29,595.64,0.33577328]
[1744506402712,0.33485693,597.27,595.64,0.98277328]
[1744506403018,0.30818679,597.26,595.65,0.29580988]
[1744506403213,0.30818679,597.26,595.66,0.33576201]
[1744506403214,0.33487375,597.24,595.66,0.33576201]
[1744506403414,0.30818679,597.23,595.66,0.33576201]
[1744506403919,0.33488496,597.22,595.66,0.33576201]
[1744506404218,0.30818679,597.21,595.66,0.33576201]
[1744506404521,0.33489618,597.2,595.66,0.33576201]
[1744506404721,0.30818679,597.19,595.66,0.33576201]
[1744506404916,0.33490739,597.18,595.66,0.33576201]
[1744506405116,0.30818679,597.17,595.66,0.63476201]
[1744506405319,0.33491861,597.16,595.66,0.63476201]
[1744506405721,0.30818679,597.15,595.66,0.63476201]
[1744506405920,0.33492983,597.14,595.66,0.63476201]
[1744506406121,0.30818679,597.13,595.66,0.63476201]
[1744506406322,0.33494105,597.12,595.66,0.63476201]
[1744506406522,0.30818679,597.11,595.66,0.63476201]
[1744506406729,0.33495226,597.1,595.66,0.63476201]
[1744506406926,0.30821146,597.09,595.66,0.63476201]
[1744506407226,0.33496348,597.08,595.66,0.63476201]
[1744506407425,0.30821146,597.07,595.66,0.63476201]
[1744506407625,0.3349747,597.06,595.66,0.63476201]
[1744506407921,0.30821146,597.05,595.66,0.63476201]
[1744506409325,0.29185939,597.04,595.66,0.63476201]
[1744506409525,0.30821146,597.03,595.66,0.63476201]
[1744506410422,0.29185939,597.04,595.66,0.63476201]
[1744506410625,0.30820428,597.03,595.66,0.63476201]
[1744506410825,0.30820428,597.03,595.67,0.29559671]
[1744506411025,0.30820428,597.03,595.68,0.33575073]
[1744506411323,0.60006612,597.02,595.69,0.29559671]
[1744506411523,0.30820428,597.01,595.7,0.33573946]
[1744506411826,0.30820428,597.01,595.71,0.29559671]
[1744506412025,0.29186184,597.02,595.72,0.33572819]
[1744506412223,0.30820414,597.01,595.72,0.33572819]
[1744506415525,0.30820414,597.01,595.73,0.623]
[1744506415829,0.30820414,597.01,595.74,0.33571692]
[1744506416229,0.30820414,597.01,595.75,0.611]
[1744506416429,0.30820414,597.01,595.76,0.33570565]
[1744506417325,0.60005741,597.0,595.77,0.707]
[1744506417530,0.30820414,596.99,595.78,0.33569438]
[1744506419332,0.30820414,596.99,595.78,0.91369438]
[1744506420228,0.30820414,597.05,595.78,0.91369438]
[1744506420430,0.29185204,596.98,595.78,0.91369438]
[1744506420634,0.30820414,596.97,595.79,0.29554554]
[1744506420834,0.30820414,597.05,595.79,0.29554554]
[1744506421033,0.3349747,597.06,595.79,0.29554554]
[1744506421034,0.30820414,597.04,595.79,0.29554554]
[1744506421229,0.30820414,597.03,595.79,0.29554554]
[1744506421434,0.30820414,597.02,595.79,0.29554554]
[1744506421634,0.30820414,597.01,595.79,0.59454554]
[1744506421935,0.30820414,597.0,595.8,0.29554554]
[1744506422132,0.30820414,597.02,595.79,0.299]
[1744506422531,0.30820414,597.02,595.8,0.33568311]
[1744506423034,0.3349747,597.06,595.8,0.33568311]
[1744506423234,0.30819162,597.05,595.8,0.33568311]
[1744506423434,0.59998004,597.05,595.8,0.33568311]
[1744506423630,0.30819162,597.04,595.8,0.33568311]
[1744506424735,0.30819162,597.04,595.8,0.91368311]
[1744506424935,0.30819162,597.04,595.8,1.79068311]
[1744506426234,0.30819162,597.05,595.8,1.79068311]
[1744506426432,0.30819162,597.04,595.8,1.79068311]
[1744506426634,0.30819162,597.05,595.8,1.79068311]
[1744506426834,0.30819162,597.04,595.8,1.79068311]
[1744506427034,0.30819162,597.03,595.8,1.79068311]
[1744506427235,0.29184225,597.03,595.8,1.79068311]
[1744506427535,0.30819162,597.02,595.8,1.79068311]
[1744506429339,0.60003387,597.01,595.8,1.79068311]
[1744506429536,0.29184225,597.01,595.8,1.79068311]
[1744506429737,0.30819522,597.0,595.8,1.79068311]
[1744506430536,0.30819522,597.0,595.81,0.29533337]
[1744506430733,0.30819522,597.0,595.82,0.33567184]
[1744506430935,0.30819522,597.0,595.83,0.29533337]
[1744506431132,0.29184225,597.01,595.82,0.33567184]
[1744506431335,0.30813243,597.0,595.83,0.29528583]
[1744506431633,0.30813243,597.0,595.84,0.33566058]
[1744506431836,0.30813243,597.0,595.85,0.29528583]
[1744506432333,0.30813243,597.05,595.85,0.29528583]
[1744506432534,0.30813243,597.04,595.86,0.811]
[1744506432838,0.30813243,597.03,595.87,0.29528583]
[1744506433039,0.30813243,597.02,595.87,0.29528583]
[1744506434238,0.30813243,597.02,595.88,0.559]
[1744506434440,0.30813243,597.02,595.89,0.29528583]
[1744506434638,0.29179576,597.03,595.88,0.559]
[1744506434838,0.30808332,597.02,595.89,0.29507867]
[1744506435338,0.29178108,597.02,595.89,0.29507867]
[1744506435538,0.30808332,597.01,595.89,0.29507867]
[1744506436138,0.30808332,597.01,595.91,0.33562115]
[1744506436337,0.29178108,597.02,595.91,0.33562115]
[1744506436538,0.30806748,597.01,595.92,0.29502755]
[1744506436738,0.30806748,597.01,595.94,0.33560425]
[1744506436934,0.30806748,597.01,595.95,0.29502755]
[1744506437239,0.30806748,597.01,595.96,0.33559299]
[1744506437438,0.30806748,597.01,595.97,0.29502755]
[1744506437638,0.30806748,597.01,595.98,0.33558173]
[1744506437838,0.29178108,597.02,595.98,0.33558173]
[1744506438038,0.30806784,597.01,595.99,0.29503047]
[1744506438235,0.30806784,597.0,595.99,0.99003047]
[1744506438433,0.29171993,597.01,596.0,0.63060093]
[1744506438632,0.30806784,597.0,596.01,0.6305953]
[1744506438836,0.30806784,597.0,596.02,0.29503047]
[1744506439040,0.30806784,597.0,596.03,0.33555357]
[1744506441040,1.27119983,597.49,596.03,0.33555357]
[1744506441235,0.64281844,597.48,596.03,0.33555357]
[1744506441540,0.64282405,597.47,596.03,0.33555357]
[1744506441740,0.30807921,597.46,596.03,0.33555357]
[1744506441941,0.64283525,597.45,596.03,0.33555357]
[1744506442142,0.64284085,597.44,596.04,0.29504752]
[1744506442342,0.64284646,597.43,596.05,0.33554232]
[1744506442642,0.33476725,597.43,596.05,0.33554232]
[1744506442841,0.30808033,597.42,596.05,0.33554232]
[1744506443044,0.64285879,597.41,596.05,0.33554232]
[1744506443238,0.64286439,597.4,596.05,1.22254232]
[1744506443540,0.64286999,597.39,596.06,0.29506276]
[1744506443741,0.30808033,597.38,596.07,0.33553106]
[1744506443938,0.30808033,597.37,596.07,0.33553106]
[1744506444139,0.30808033,597.37,596.08,0.29505612]
[1744506444335,0.30808033,597.36,596.09,0.3355198]
[1744506444539,0.30808033,597.35,596.09,0.3355198]
[1744506444736,0.30808033,597.34,596.09,0.3355198]
[1744506445041,0.30808033,597.33,596.09,0.3355198]
[1744506445340,0.29170282,597.36,596.09,0.3355198]
[1744506445341,0.30808033,597.32,596.09,0.3355198]
[1744506445538,0.30808033,597.31,596.09,0.3355198]
[1744506445742,0.29170282,597.36,596.09,0.3355198]
[1744506445937,0.3080826,597.35,596.09,0.3355198]
[1744506446136,0.3080826,597.34,596.09,0.3355198]
[1744506446340,0.3080826,597.35,596.09,0.3355198]
[1744506446537,0.3080826,597.35,596.1,0.29492951]
[1744506447044,0.3080826,597.35,596.11,0.721]
[1744506447240,0.3080826,597.37,596.11,0.721]
[1744506447437,0.29167714,597.34,596.11,0.721]
[1744506447741,0.30803206,597.33,596.11,0.721]
[1744506448343,0.30803206,597.33,596.12,0.657]
[1744506448544,0.30803206,597.33,596.13,0.33549729]
[1744506448944,0.29167714,597.34,596.13,0.33549729]
[1744506449242,0.30804123,597.33,596.13,0.33549729]
[1744506449443,0.30804123,597.33,596.14,0.73]
[1744506449743,0.30804123,597.33,596.15,0.33548603]
[1744506452643,0.30804123,597.33,596.15,1.17148603]
[1744506453238,0.30804123,597.38,596.15,1.17148603]
[1744506453440,0.29169548,597.32,596.15,1.17148603]
[1744506453647,0.30804123,597.31,596.15,1.17148603]
[1744506455348,0.29169548,597.32,596.15,1.17148603]
[1744506455540,0.30802042,597.31,596.15,1.17148603]
[1744506456247,0.30802042,597.38,596.16,0.29498062]
[1744506456445,0.59970001,597.3,596.17,0.33547478]
[1744506456648,0.30802042,597.29,596.17,0.33547478]
[1744506456844,0.30802042,597.38,596.17,0.33547478]
[1744506457047,0.30801536,597.37,596.17,0.33547478]
[1744506457247,0.30801536,597.38,596.17,0.33547478]
[1744506457449,0.29167103,597.36,596.17,0.33547478]
[1744506457648,0.30801536,597.35,596.18,0.29495096]
[1744506457848,0.30801536,597.35,596.19,0.33546352]
[1744506459249,0.59969006,597.34,596.19,0.33546352]
[1744506459448,0.30801536,597.33,596.19,0.33546352]
[1744506462051,0.30801536,597.33,596.2,0.2949416]
[1744506462250,0.30801536,597.38,596.21,0.33545227]
[1744506462551,0.30801536,597.38,596.21,0.83045227]
[1744506463347,0.2916637,597.37,596.21,0.83045227]
[1744506463553,0.30801536,597.36,596.21,0.83045227]
[1744506464553,0.30801536,597.36,596.22,0.29492778]
[1744506465051,0.33478966,597.39,596.21,0.83045227]
[1744506465252,0.30799988,597.38,596.22,0.29492138]
[1744506465552,0.30799988,597.38,596.21,0.83045227]
[1744506465945,0.30799988,597.38,596.22,0.29493291]
[1744506466351,0.2916637,597.37,596.22,0.29493291]
[1744506466551,0.30799988,597.36,596.21,0.83045227]
[1744506466745,0.30799988,597.36,596.22,0.29490655]
[1744506468254,0.33478966,597.39,596.21,0.83045227]
[1744506468454,0.2916637,597.35,596.22,0.29489992]
[1744506468654,0.30800341,597.34,596.22,0.29489992]
[1744506472560,0.30800341,597.34,596.23,0.972]
[1744506473356,0.30800341,597.34,596.24,0.29489978]
[1744506473661,0.30800341,597.34,596.25,0.299]
[1744506474059,0.30800341,597.34,596.26,0.668]
[1744506474356,0.59966955,597.33,596.26,0.668]
[1744506474560,0.30800341,597.32,596.27,0.822]